fUSD/lending_fUSD_20260616
["ID","MTS","AMOUNT","RATE_DAILY","PERIOD"]
[425198185,1781567453000,-151.0,0.00037033,30]
[425198178,1781567453000,-165.152249,0.00037033,30]
[425198182,1781567453000,-165.152249,0.00037033,30]
[425198187,1781567453000,-376.042888,0.00037033,30]
[425198181,1781567453000,-172.511072,0.00037033,30]
[425198180,1781567453000,-296.477241,0.00037033,30]
[425198186,1781567453000,-172.511072,0.00037033,30]
[425198184,1781567453000,-296.477241,0.00037033,30]
[425198189,1781567453000,-151.0,0.00037033,30]
[425198199,1781567453000,-489.266312,0.00037033,30]
[425198188,1781567453000,-151.0,0.00037033,30]
[425198191,1781567453000,-163.911377,0.00037033,30]
[425198194,1781567453000,-500.0,0.00037033,30]
[425198177,1781567453000,-172.511072,0.00037033,30]
[425198197,1781567453000,-151.0,0.00037033,30]
[425198196,1781567453000,-500.0,0.00037033,30]
[425198202,1781567453000,-151.0,0.00037033,30]
[425198206,1781567453000,-151.0,0.00037033,30]
[425198203,1781567453000,-489.266312,0.00037033,30]
[425198211,1781567453000,-530.377186,0.00037033,30]
[425198201,1781567453000,-489.266312,0.00037033,30]
[425198212,1781567453000,-530.377186,0.00037033,30]
[425198193,1781567453000,-151.0,0.00037033,30]
[425198198,1781567453000,-500.0,0.00037033,30]
[425198195,1781567453000,-191.575471,0.00037033,30]
[425198190,1781567453000,-500.0,0.00037033,30]
[425198192,1781567453000,-219.295197,0.00037033,30]
[425198200,1781567453000,-151.0,0.00037033,30]
[425198275,1781567454000,-1226.0,0.00037794,3]
[425198276,1781567454000,-171.12174107,0.00037796,60]
[425198277,1781567454000,-188.279885,0.00037796,2]
[425198281,1781567454000,-917.316462,0.00037796,30]
[425198269,1781567454000,-150.0,0.0003774,120]
[425198274,1781567454000,-379.29139,0.0003779,94]
[425198273,1781567454000,-379.2914,0.0003779,94]
[425198271,1781567454000,-250.0,0.0003777,46]
[425198266,1781567454000,-208.38353,0.00037681,120]
[425198272,1781567454000,-426.0,0.00037789,2]
[425198278,1781567454000,-917.316462,0.00037796,30]
[425198295,1781567454000,-399.481321,0.00037796,30]
[425198282,1781567454000,-295.879662,0.00037796,30]
[425198280,1781567454000,-151.0,0.00037796,30]
[425198283,1781567454000,-151.0,0.00037796,30]
[425198284,1781567454000,-917.316462,0.00037796,30]
[425198268,1781567454000,-1000.0,0.00037735,60]
[425198285,1781567454000,-604.00156,0.00037796,30]
[425198294,1781567454000,-151.0,0.00037796,30]
[425198289,1781567454000,-604.00156,0.00037796,30]
[425198290,1781567454000,-399.481321,0.00037796,30]
[425198291,1781567454000,-322.224077,0.00037796,30]
[425198287,1781567454000,-917.316462,0.00037796,30]
[425198288,1781567454000,-3558.653144,0.00037796,30]
[425198286,1781567454000,-399.481321,0.00037796,30]
[425198279,1781567454000,-151.0,0.00037796,30]
[425198267,1781567454000,-150.0,0.00037694,2]
[425198262,1781567454000,-365.22,0.00037622,120]
[425198265,1781567454000,-1839.28156763,0.00037627,2]
[425198293,1781567454000,-604.00156,0.00037796,30]
[425198238,1781567454000,-150.0,0.00037449,2]
[425198240,1781567454000,-500.0,0.00037449,2]
[425198241,1781567454000,-1000.0,0.00037449,2]
[425198239,1781567454000,-150.0,0.00037449,2]
[425198243,1781567454000,-763.0,0.00037469,14]
[425198242,1781567454000,-169.85301566,0.00037458,120]
[425198244,1781567454000,-1000.0,0.00037472,60]
[425198245,1781567454000,-500.0,0.000375,120]
[425198246,1781567454000,-800.0,0.000375,7]
[425198247,1781567454000,-800.0,0.000375,7]
[425198248,1781567454000,-400.0,0.000375,7]
[425198264,1781567454000,-473.99,0.00037622,120]
[425198249,1781567454000,-2000.0,0.00037501,7]
[425198253,1781567454000,-1686.91308372,0.00037578,7]
[425198250,1781567454000,-10408.0,0.00037526,10]
[425198258,1781567454000,-322.23059967,0.0003761,30]
[425198252,1781567454000,-954.22552882,0.00037568,120]
[425198251,1781567454000,-1000.0,0.00037541,60]
[425198257,1781567454000,-296733.0,0.000376,30]
[425198255,1781567454000,-1423.63449816,0.00037578,7]
[425198259,1781567454000,-400.0,0.0003762,60]
[425198261,1781567454000,-547.28,0.00037622,120]
[425198260,1781567454000,-972.28,0.00037622,120]
[425198270,1781567454000,-11680.13,0.0003776,9]
[425198263,1781567454000,-937.39,0.00037622,120]
[425198254,1781567454000,-1615.31995474,0.00037578,7]
[425198256,1781567454000,-556.15159603,0.000376,120]
[425198292,1781567454000,-3558.653144,0.00037796,30]
[425198297,1781567454000,-3558.653144,0.00037796,30]
[425198321,1781567454000,-168.591821,0.00037796,30]
[425198330,1781567454000,-151.0,0.00037796,30]
[425198328,1781567454000,-151.0,0.00037796,30]
[425198341,1781567454000,-303.45839,0.00037796,28]
[425198333,1781567454000,-262.434592,0.00037796,30]
[425198332,1781567454000,-151.0,0.00037796,30]
[425198331,1781567454000,-540.117678,0.00037796,30]
[425198334,1781567454000,-180.255465,0.00037796,30]
[425198335,1781567454000,-303.45839,0.00037796,28]
[425198338,1781567454000,-269.009011,0.00037796,30]
[425198340,1781567454000,-262.434592,0.00037796,30]
[425198336,1781567454000,-151.0,0.00037796,30]
[425198329,1781567454000,-180.255465,0.00037796,30]
[425198339,1781567454000,-540.117678,0.00037796,30]
[425198346,1781567454000,-151.0,0.00037796,30]
[425198344,1781567454000,-262.434592,0.00037796,30]
[425198347,1781567454000,-280.113961,0.00037796,30]
[425198345,1781567454000,-303.45839,0.00037796,28]
[425198343,1781567454000,-540.117678,0.00037796,30]
[425198351,1781567454000,-151.0,0.00037796,30]
[425198348,1781567454000,-303.45839,0.00037796,28]
[425198349,1781567454000,-151.0,0.00037796,30]
[425198350,1781567454000,-151.0,0.00037796,30]
[425198352,1781567454000,-500.0,0.00037796,2]
[425198353,1781567454000,-500.0,0.00037796,2]
[425198296,1781567454000,-322.224077,0.00037796,30]
[425198342,1781567454000,-151.0,0.00037796,30]
[425198326,1781567454000,-540.117678,0.00037796,30]
[425198337,1781567454000,-151.0,0.00037796,30]
[425198323,1781567454000,-180.255465,0.00037796,30]
[425198327,1781567454000,-262.434592,0.00037796,30]
[425198301,1781567454000,-399.481321,0.00037796,30]
[425198300,1781567454000,-604.00156,0.00037796,30]
[425198306,1781567454000,-3558.653144,0.00037796,30]
[425198299,1781567454000,-151.0,0.00037796,30]
[425198302,1781567454000,-260.187278,0.00037796,30]
[425198303,1781567454000,-168.591821,0.00037796,30]
[425198304,1781567454000,-177.479421,0.00037796,30]
[425198305,1781567454000,-322.224077,0.00037796,30]
[425198308,1781567454000,-260.187278,0.00037796,30]
[425198310,1781567454000,-177.479421,0.00037796,30]
[425198309,1781567454000,-168.591821,0.00037796,30]
[425198318,1781567454000,-151.0,0.00037796,30]
[425198298,1781567454000,-151.0,0.00037796,30]
[425198325,1781567454000,-151.0,0.00037796,30]
[425198324,1781567454000,-180.255465,0.00037796,30]
[425198322,1781567454000,-151.0,0.00037796,30]
[425198320,1781567454000,-260.187278,0.00037796,30]
[425198311,1781567454000,-151.0,0.00037796,30]
[425198317,1781567454000,-260.187278,0.00037796,30]
[425198319,1781567454000,-177.479421,0.00037796,30]
[425198315,1781567454000,-151.0,0.00037796,30]
[425198314,1781567454000,-177.479421,0.00037796,30]
[425198316,1781567454000,-168.591821,0.00037796,30]
[425198312,1781567454000,-322.224077,0.00037796,30]
[425198307,1781567454000,-151.0,0.00037796,30]
[425198313,1781567454000,-151.0,0.00037796,30]
[425198396,1781567455000,-151.0,0.000378,30]
[425198393,1781567455000,-207.133343,0.000378,30]
[425198395,1781567455000,-151.0,0.000378,10]
[425198390,1781567455000,-151.0,0.000378,30]
[425198392,1781567455000,-185.847518,0.000378,30]
[425198379,1781567455000,-151.0,0.000378,30]
[425198389,1781567455000,-151.0,0.000378,10]
[425198385,1781567455000,-789.421542,0.000378,30]
[425198387,1781567455000,-151.0,0.000378,30]
[425198382,1781567455000,-200.119113,0.000378,30]
[425198394,1781567455000,-168.821019,0.000378,30]
[425198383,1781567455000,-789.421542,0.000378,30]
[425198391,1781567455000,-154.486255,0.000378,30]
[425198400,1781567455000,-168.821019,0.000378,30]
[425198403,1781567455000,-185.847518,0.000378,30]
[425198399,1781567455000,-151.0,0.000378,10]
[425198397,1781567455000,-154.486255,0.000378,30]
[425198402,1781567455000,-154.486255,0.000378,30]
[425198401,1781567455000,-151.0,0.000378,30]
[425198412,1781567455000,-151.0,0.000378,30]
[425198404,1781567455000,-151.0,0.000378,10]
[425198407,1781567455000,-151.0,0.000378,30]
[425198405,1781567455000,-168.821019,0.000378,30]
[425198406,1781567455000,-154.486255,0.000378,30]
[425198408,1781567455000,-185.847518,0.000378,30]
[425198409,1781567455000,-151.0,0.000378,30]
[425198410,1781567455000,-151.0,0.000378,30]
[425198398,1781567455000,-185.847518,0.000378,30]
[425198384,1781567455000,-482.786179,0.000378,30]
[425198354,1781567455000,-189.151626,0.00037796,2]
[425198381,1781567455000,-482.786179,0.000378,30]
[425198411,1781567455000,-168.821019,0.000378,30]
[425198362,1781567455000,-620.326764,0.00037796,30]
[425198364,1781567455000,-232.189887,0.00037796,7]
[425198363,1781567455000,-765.950537,0.00037796,30]
[425198355,1781567455000,-151.0,0.00037796,30]
[425198356,1781567455000,-765.950537,0.00037796,30]
[425198360,1781567455000,-620.326764,0.00037796,30]
[425198359,1781567455000,-765.950537,0.00037796,30]
[425198357,1781567455000,-620.326764,0.00037796,30]
[425198358,1781567455000,-232.189887,0.00037796,7]
[425198361,1781567455000,-232.189887,0.00037796,7]
[425198367,1781567455000,-232.189887,0.00037796,7]
[425198368,1781567455000,-357.0,0.00037796,30]
[425198365,1781567455000,-765.950537,0.00037796,30]
[425198371,1781567455000,-357.0,0.00037796,30]
[425198370,1781567455000,-357.0,0.00037796,30]
[425198369,1781567455000,-357.0,0.00037796,30]
[425198366,1781567455000,-620.326764,0.00037796,30]
[425198375,1781567455000,-151.0,0.000378,7]
[425198372,1781567455000,-57346.08228156,0.00037796,2]
[425198376,1781567455000,-482.786179,0.000378,30]
[425198373,1781567455000,-530346.10675778,0.000378,5]
[425198374,1781567455000,-200.0,0.000378,13]
[425198378,1781567455000,-482.786179,0.000378,30]
[425198388,1781567455000,-215.650342,0.000378,30]
[425198377,1781567455000,-151.0,0.000378,30]
[425198380,1781567455000,-789.421542,0.000378,30]
[425198386,1781567455000,-789.421542,0.000378,30]
[425198413,1781567455000,-151.0,0.000378,30]
[425198471,1781567455000,-151.0,0.00037933,30]
[425198416,1781567455000,-151.0,0.000378,30]
[425198449,1781567455000,-155.312242,0.00037877,120]
[425198448,1781567455000,-200.0,0.00037872,10]
[425198440,1781567455000,-178.030021,0.000378,30]
[425198450,1781567455000,-5000.0,0.000379,120]
[425198452,1781567455000,-2000.0,0.00037918,30]
[425198451,1781567455000,-200.0,0.000379,13]
[425198462,1781567455000,-222.976843,0.00037933,30]
[425198453,1781567455000,-501.0,0.00037925,13]
[425198457,1781567455000,-904.386218,0.00037933,30]
[425198454,1781567455000,-151.0,0.00037933,30]
[425198459,1781567455000,-222.976843,0.00037933,30]
[425198455,1781567455000,-151.0,0.00037933,30]
[425198458,1781567455000,-151.0,0.00037933,30]
[425198460,1781567455000,-904.386218,0.00037933,30]
[425198461,1781567455000,-151.0,0.00037933,30]
[425198463,1781567455000,-904.386218,0.00037933,30]
[425198464,1781567455000,-151.0,0.00037933,30]
[425198465,1781567455000,-369.36843,0.00037933,30]
[425198467,1781567455000,-151.0,0.00037933,30]
[425198469,1781567455000,-151.0,0.00037933,30]
[425198472,1781567455000,-151.0,0.00037933,30]
[425198474,1781567455000,-235.909694,0.00037933,30]
[425198473,1781567455000,-223.849484,0.00037933,30]
[425198470,1781567455000,-369.36843,0.00037933,30]
[425198468,1781567455000,-904.386218,0.00037933,30]
[425198466,1781567455000,-222.976843,0.00037933,30]
[425198414,1781567455000,-151.0,0.000378,30]
[425198445,1781567455000,-503.84371303,0.0003783,120]
[425198447,1781567455000,-431.88,0.00037864,120]
[425198456,1781567455000,-222.976843,0.00037933,30]
[425198443,1781567455000,-426.0,0.00037802,2]
[425198415,1781567455000,-151.0,0.000378,30]
[425198442,1781567455000,-285.006305,0.000378,30]
[425198425,1781567455000,-1314.73698,0.000378,30]
[425198419,1781567455000,-506.720864,0.000378,30]
[425198424,1781567455000,-168.33845,0.000378,30]
[425198417,1781567455000,-151.0,0.000378,30]
[425198420,1781567455000,-1314.73698,0.000378,30]
[425198421,1781567455000,-506.720864,0.000378,30]
[425198423,1781567455000,-506.720864,0.000378,30]
[425198418,1781567455000,-506.720864,0.000378,30]
[425198437,1781567455000,-151.0,0.000378,30]
[425198427,1781567455000,-151.0,0.000378,30]
[425198438,1781567455000,-151.0,0.000378,30]
[425198426,1781567455000,-1314.73698,0.000378,30]
[425198422,1781567455000,-1314.73698,0.000378,30]
[425198446,1781567455000,-14863.0,0.00037843,10]
[425198444,1781567455000,-426.0,0.00037804,2]
[425198434,1781567455000,-522.386431,0.000378,30]
[425198441,1781567455000,-151.0,0.000378,30]
[425198439,1781567455000,-151.0,0.000378,30]
[425198435,1781567455000,-522.386431,0.000378,30]
[425198436,1781567455000,-151.0,0.000378,30]
[425198433,1781567455000,-151.0,0.000378,30]
[425198430,1781567455000,-151.0,0.000378,30]
[425198431,1781567455000,-522.386431,0.000378,30]
[425198432,1781567455000,-522.386431,0.000378,30]
[425198429,1781567455000,-151.0,0.000378,30]
[425198428,1781567455000,-151.0,0.000378,30]
[425198520,1781567456000,-330.69159,0.00037933,30]
[425198522,1781567456000,-330.69159,0.00037933,30]
[425198515,1781567456000,-926.973306,0.00037933,30]
[425198521,1781567456000,-1574.302532,0.00037933,30]
[425198517,1781567456000,-926.973306,0.00037933,30]
[425198507,1781567456000,-337.765642,0.00037933,30]
[425198513,1781567456000,-2065.763796,0.00037933,30]
[425198509,1781567456000,-2065.763796,0.00037933,30]
[425198506,1781567456000,-3174.168476,0.00037933,30]
[425198508,1781567456000,-151.0,0.00037933,30]
[425198523,1781567456000,-151.0,0.00037933,30]
[425198512,1781567456000,-3174.168476,0.00037933,30]
[425198518,1781567456000,-330.69159,0.00037933,30]
[425198530,1781567456000,-1811.324209,0.00037933,30]
[425198524,1781567456000,-1574.302532,0.00037933,30]
[425198516,1781567456000,-926.973306,0.00037933,30]
[425198519,1781567456000,-330.69159,0.00037933,30]
[425198525,1781567456000,-151.0,0.00037933,30]
[425198536,1781567456000,-2624.171026,0.00037933,30]
[425198526,1781567456000,-1574.302532,0.00037933,30]
[425198537,1781567456000,-151.0,0.00037933,30]
[425198528,1781567456000,-1574.302532,0.00037933,30]
[425198527,1781567456000,-151.0,0.00037933,30]
[425198531,1781567456000,-1811.324209,0.00037933,30]
[425198534,1781567456000,-2624.171026,0.00037933,30]
[425198533,1781567456000,-2624.171026,0.00037933,30]
[425198505,1781567456000,-2065.763796,0.00037933,30]
[425198514,1781567456000,-926.973306,0.00037933,30]
[425198504,1781567456000,-151.0,0.00037933,30]
[425198477,1781567456000,-235.909694,0.00037933,30]
[425198502,1781567456000,-337.765642,0.00037933,30]
[425198475,1781567456000,-151.0,0.00037933,30]
[425198485,1781567456000,-224.968459,0.00037933,30]
[425198486,1781567456000,-151.0,0.00037933,30]
[425198476,1781567456000,-369.36843,0.00037933,30]
[425198478,1781567456000,-369.36843,0.00037933,30]
[425198482,1781567456000,-224.968459,0.00037933,30]
[425198479,1781567456000,-235.909694,0.00037933,30]
[425198481,1781567456000,-235.909694,0.00037933,30]
[425198483,1781567456000,-224.968459,0.00037933,30]
[425198484,1781567456000,-151.0,0.00037933,30]
[425198480,1781567456000,-224.968459,0.00037933,30]
[425198490,1781567456000,-310.959316,0.00037933,30]
[425198489,1781567456000,-151.0,0.00037933,30]
[425198511,1781567456000,-2065.763796,0.00037933,30]
[425198487,1781567456000,-151.0,0.00037933,30]
[425198492,1781567456000,-530.428475,0.00037933,30]
[425198488,1781567456000,-151.0,0.00037933,30]
[425198495,1781567456000,-310.959316,0.00037933,30]
[425198493,1781567456000,-310.959316,0.00037933,30]
[425198496,1781567456000,-530.428475,0.00037933,30]
[425198494,1781567456000,-530.428475,0.00037933,30]
[425198497,1781567456000,-151.0,0.00037933,30]
[425198498,1781567456000,-530.428475,0.00037933,30]
[425198499,1781567456000,-337.765642,0.00037933,30]
[425198510,1781567456000,-3174.168476,0.00037933,30]
[425198501,1781567456000,-337.765642,0.00037933,30]
[425198500,1781567456000,-151.0,0.00037933,30]
[425198503,1781567456000,-3174.168476,0.00037933,30]
[425198491,1781567456000,-310.959316,0.00037933,30]
[425198532,1781567456000,-1811.324209,0.00037933,30]
[425198535,1781567456000,-2624.171026,0.00037933,30]
[425198538,1781567456000,-242.209164,0.00037934,30]
[425198570,1781567456000,-345.533132,0.00037934,30]
[425198569,1781567456000,-161.466694,0.00037934,30]
[425198568,1781567456000,-203.519068,0.00037934,30]
[425198576,1781567456000,-151.0,0.00037934,30]
[425198588,1781567456000,-187.467548,0.00037934,30]
[425198575,1781567456000,-203.519068,0.00037934,30]
[425198586,1781567456000,-151.0,0.00037934,30]
[425198577,1781567456000,-345.533132,0.00037934,30]
[425198578,1781567456000,-151.0,0.00037934,30]
[425198580,1781567456000,-151.0,0.00037934,30]
[425198587,1781567456000,-151.0,0.00037934,30]
[425198581,1781567456000,-203.519068,0.00037934,30]
[425198585,1781567456000,-185.224865,0.00037934,30]
[425198567,1781567456000,-189.269318,0.00037934,7]
[425198583,1781567456000,-345.533132,0.00037934,30]
[425198582,1781567456000,-151.0,0.00037934,30]
[425198589,1781567456000,-151.0,0.00037934,30]
[425198593,1781567456000,-186.716245,0.00037934,30]
[425198594,1781567456000,-186.716245,0.00037934,30]
[425198591,1781567456000,-151.0,0.00037934,30]
[425198590,1781567456000,-186.716245,0.00037934,30]
[425198596,1781567456000,-292.475509,0.00037934,30]
[425198598,1781567456000,-292.475509,0.00037934,30]
[425198592,1781567456000,-186.716245,0.00037934,30]
[425198597,1781567456000,-292.475509,0.00037934,30]
[425198595,1781567456000,-292.475509,0.00037934,30]
[425198599,1781567456000,-308.331018,0.00037934,30]
[425198529,1781567456000,-1811.324209,0.00037933,30]
[425198584,1781567456000,-151.0,0.00037934,30]
[425198566,1781567456000,-352.367102,0.00037934,30]
[425198579,1781567456000,-151.0,0.00037934,30]
[425198565,1781567456000,-151.0,0.00037934,30]
[425198571,1781567456000,-151.0,0.00037934,30]
[425198540,1781567456000,-242.209164,0.00037934,30]
[425198539,1781567456000,-242.209164,0.00037934,30]
[425198547,1781567456000,-208.964824,0.00037934,30]
[425198542,1781567456000,-351.002532,0.00037934,30]
[425198543,1781567456000,-242.209164,0.00037934,30]
[425198545,1781567456000,-913.448886,0.00037934,30]
[425198548,1781567456000,-913.448886,0.00037934,30]
[425198546,1781567456000,-351.002532,0.00037934,30]
[425198544,1781567456000,-351.002532,0.00037934,30]
[425198560,1781567456000,-151.0,0.00037934,30]
[425198550,1781567456000,-352.367102,0.00037934,30]
[425198556,1781567456000,-352.367102,0.00037934,30]
[425198557,1781567456000,-161.466694,0.00037934,30]
[425198551,1781567456000,-208.964824,0.00037934,30]
[425198541,1781567456000,-351.002532,0.00037934,30]
[425198572,1781567456000,-203.519068,0.00037934,30]
[425198564,1781567456000,-208.964824,0.00037934,30]
[425198562,1781567456000,-189.269318,0.00037934,7]
[425198563,1781567456000,-161.466694,0.00037934,30]
[425198553,1781567456000,-913.448886,0.00037934,30]
[425198573,1781567456000,-345.533132,0.00037934,30]
[425198558,1781567456000,-913.448886,0.00037934,30]
[425198574,1781567456000,-151.0,0.00037934,30]
[425198549,1781567456000,-189.269318,0.00037934,7]
[425198555,1781567456000,-189.269318,0.00037934,7]
[425198561,1781567456000,-352.367102,0.00037934,30]
[425198552,1781567456000,-161.466694,0.00037934,30]
[425198554,1781567456000,-151.0,0.00037934,30]
[425198559,1781567456000,-208.964824,0.00037934,30]
[425198649,1781567457000,-2172.010347,0.00037934,30]
[425198648,1781567457000,-1277.684122,0.00037934,30]
[425198640,1781567457000,-151.0,0.00037934,30]
[425198643,1781567457000,-2172.010347,0.00037934,30]
[425198636,1781567457000,-179.17089,0.00037934,30]
[425198639,1781567457000,-484.102695,0.00037934,30]
[425198632,1781567457000,-362.75398,0.00037934,30]
[425198635,1781567457000,-1277.684122,0.00037934,30]
[425198634,1781567457000,-174.638269,0.00037934,30]
[425198633,1781567457000,-151.0,0.00037934,30]
[425198630,1781567457000,-179.17089,0.00037934,30]
[425198642,1781567457000,-179.17089,0.00037934,30]
[425198637,1781567457000,-2172.010347,0.00037934,30]
[425198644,1781567457000,-174.638269,0.00037934,30]
[425198652,1781567457000,-174.432159,0.00037934,30]
[425198646,1781567457000,-542.150422,0.00037934,30]
[425198641,1781567457000,-1277.684122,0.00037934,30]
[425198645,1781567457000,-484.102695,0.00037934,30]
[425198651,1781567457000,-542.150422,0.00037934,30]
[425198647,1781567457000,-151.0,0.00037934,30]
[425198653,1781567457000,-151.0,0.00037934,30]
[425198663,1781567457000,-151.0,0.00037934,30]
[425198664,1781567457000,-174.432159,0.00037934,30]
[425198654,1781567457000,-280.0,0.00037934,30]
[425198656,1781567457000,-484.102695,0.00037934,30]
[425198659,1781567457000,-280.0,0.00037934,30]
[425198655,1781567457000,-151.0,0.00037934,30]
[425198660,1781567457000,-151.0,0.00037934,30]
[425198650,1781567457000,-484.102695,0.00037934,30]
[425198627,1781567457000,-174.638269,0.00037934,30]
[425198658,1781567457000,-174.432159,0.00037934,30]
[425198631,1781567457000,-2172.010347,0.00037934,30]
[425198601,1781567457000,-308.331018,0.00037934,30]
[425198600,1781567457000,-308.331018,0.00037934,30]
[425198603,1781567457000,-821.971231,0.00037934,30]
[425198614,1781567457000,-362.75398,0.00037934,30]
[425198613,1781567457000,-821.971231,0.00037934,30]
[425198609,1781567457000,-151.0,0.00037934,30]
[425198612,1781567457000,-2620.052024,0.00037934,30]
[425198606,1781567457000,-821.971231,0.00037934,30]
[425198604,1781567457000,-821.971231,0.00037934,30]
[425198605,1781567457000,-749.49286,0.00037934,30]
[425198607,1781567457000,-2620.052024,0.00037934,30]
[425198602,1781567457000,-308.331018,0.00037934,30]
[425198608,1781567457000,-2541.136333,0.00037934,30]
[425198629,1781567457000,-1277.684122,0.00037934,30]
[425198610,1781567457000,-749.49286,0.00037934,30]
[425198615,1781567457000,-151.0,0.00037934,30]
[425198616,1781567457000,-2541.136333,0.00037934,30]
[425198617,1781567457000,-749.49286,0.00037934,30]
[425198618,1781567457000,-151.0,0.00037934,30]
[425198619,1781567457000,-2620.052024,0.00037934,30]
[425198622,1781567457000,-185.041352,0.00037934,30]
[425198620,1781567457000,-362.75398,0.00037934,30]
[425198624,1781567457000,-179.17089,0.00037934,30]
[425198621,1781567457000,-2541.136333,0.00037934,30]
[425198623,1781567457000,-749.49286,0.00037934,30]
[425198625,1781567457000,-2620.052024,0.00037934,30]
[425198638,1781567457000,-174.638269,0.00037934,30]
[425198628,1781567457000,-2541.136333,0.00037934,30]
[425198611,1781567457000,-151.0,0.00037934,30]
[425198662,1781567457000,-280.0,0.00037934,30]
[425198626,1781567457000,-362.75398,0.00037934,30]
[425198661,1781567457000,-542.150422,0.00037934,30]
[425198701,1781567457000,-685.56,0.00037953,120]
[425198703,1781567457000,-693.136185,0.00037953,30]
[425198697,1781567457000,-202.01970294,0.00037939,2]
[425198693,1781567457000,-195.330234,0.00037934,30]
[425198700,1781567457000,-259923.35743347,0.00037953,13]
[425198699,1781567457000,-278.0,0.00037942,120]
[425198716,1781567457000,-321.936413,0.00037953,30]
[425198724,1781567457000,-151.0,0.00037953,30]
[425198705,1781567457000,-693.136185,0.00037953,30]
[425198715,1781567457000,-151.0,0.00037953,30]
[425198706,1781567457000,-1663.436752,0.00037953,30]
[425198704,1781567457000,-1663.436752,0.00037953,30]
[425198710,1781567457000,-1663.436752,0.00037953,30]
[425198709,1781567457000,-693.136185,0.00037953,30]
[425198707,1781567457000,-693.136185,0.00037953,30]
[425198711,1781567457000,-151.0,0.00037953,30]
[425198712,1781567457000,-151.0,0.00037953,30]
[425198714,1781567457000,-151.0,0.00037953,30]
[425198708,1781567457000,-1663.436752,0.00037953,30]
[425198713,1781567457000,-160.644277,0.00037953,30]
[425198717,1781567457000,-151.0,0.00037953,30]
[425198718,1781567457000,-151.0,0.00037953,30]
[425198721,1781567457000,-151.0,0.00037953,30]
[425198719,1781567457000,-151.0,0.00037953,30]
[425198722,1781567457000,-153.463369,0.00037953,30]
[425198720,1781567457000,-151.0,0.00037953,30]
[425198723,1781567457000,-321.936413,0.00037953,30]
[425198726,1781567457000,-1221.118993,0.00037953,30]
[425198657,1781567457000,-542.150422,0.00037934,30]
[425198696,1781567457000,-195.330234,0.00037934,30]
[425198695,1781567457000,-195.330234,0.00037934,30]
[425198725,1781567457000,-151.0,0.00037953,30]
[425198691,1781567457000,-151.0,0.00037934,30]
[425198698,1781567457000,-278.0,0.00037942,120]
[425198665,1781567457000,-151.0,0.00037934,30]
[425198676,1781567457000,-185.488402,0.00037934,30]
[425198677,1781567457000,-185.488402,0.00037934,30]
[425198670,1781567457000,-151.0,0.00037934,30]
[425198671,1781567457000,-151.0,0.00037934,30]
[425198668,1781567457000,-174.432159,0.00037934,30]
[425198667,1781567457000,-186.774901,0.00037934,30]
[425198669,1781567457000,-151.0,0.00037934,30]
[425198674,1781567457000,-151.0,0.00037934,30]
[425198673,1781567457000,-151.0,0.00037934,30]
[425198675,1781567457000,-151.0,0.00037934,30]
[425198672,1781567457000,-151.0,0.00037934,30]